bitfinex/quotes_ETHUSD_20250720
["timestamp","ask_amount","ask_price","bid_price","bid_amount"]
[1753037786225,0.7658,3751.6,3751.2,0.1328]
[1753037786424,0.7658,3752.7,3751.3,0.47395742]
[1753037786604,4.144,3752.6,3752.1,0.1328]
[1753037786805,3.56336169,3752.7,3752.1,0.1328]
[1753037786806,4.144,3752.5,3752.1,0.1328]
[1753037787537,4.144,3752.4,3752.1,2.79794985]
[1753037788407,4.144,3752.4,3752.3,2.66503211]
[1753037788727,0.55,3752.6,3752.3,2.66503211]
[1753037788897,4.143,3752.5,3752.1,2.79795934]
[1753037789098,4.143,3752.5,3752.2,2.66508819]
[1753037789298,4.143,3752.5,3752.1,2.79796057]
[1753037789822,4.143,3752.5,3752.1,0.1328]
[1753037790138,0.55,3752.6,3752.1,0.1328]
[1753037790347,4.143,3752.4,3752.1,0.1328]
[1753037791545,2.6649714,3752.4,3752.1,0.1328]
[1753037791717,4.142,3752.3,3752.1,0.1328]
[1753037795753,2.66490219,3752.5,3752.1,0.1328]
[1753037795954,4.141,3752.4,3752.1,0.1328]
[1753037796163,0.8204,3752.1,3751.5,2.66558774]
[1753037796459,0.8204,3752.1,3751.2,1.10127262]
[1753037796460,1.1738,3752.1,3751.2,6.76707079]
[1753037796659,4.141,3752.0,3751.6,0.1328]
[1753037797064,4.4944,3752.0,3751.6,0.1328]
[1753037797272,2.66539747,3751.8,3751.6,0.1328]
[1753037797465,0.3534,3751.9,3751.6,0.1328]
[1753037798169,3.01872749,3751.9,3751.6,0.1328]
[1753037799165,4.14,3751.8,3751.6,0.1328]
[1753037799366,4.14,3751.7,3751.6,0.5852]
[1753037799545,4.14,3751.7,3751.6,0.72737574]
[1753037799742,4.14,3751.7,3751.6,0.1328]
[1753037800147,4.14,3751.8,3751.6,2.79831713]
[1753037800373,4.14,3751.8,3751.7,3.11785832]
[1753037802186,4.14,3751.8,3751.7,2.66545832]
[1753037802556,4.14,3751.8,3751.6,2.79830673]
[1753037802868,0.55,3752.3,3751.8,2.66533134]
[1753037803097,4.139,3752.0,3751.8,3.11773134]
[1753037803374,4.139,3752.0,3751.8,3.25053134]
[1753037804162,4.139,3752.2,3751.8,3.25053134]
[1753037804478,4.139,3752.2,3751.9,2.66531548]
[1753037804650,4.139,3752.2,3751.8,0.5852]
[1753037804651,4.139,3752.2,3751.8,3.25056315]
[1753037805349,4.138,3752.2,3751.9,2.66529982]
[1753037805550,4.138,3752.2,3751.8,0.5852]
[1753037805852,0.55,3752.3,3751.8,3.25057225]
[1753037806079,4.688,3752.3,3751.8,0.5852]
[1753037806593,0.775,3752.4,3751.9,0.4524]
[1753037806889,0.1348,3752.5,3751.9,0.4524]
[1753037806890,4.138,3752.3,3752.2,0.1328]
[1753037807387,0.002,3752.5,3752.2,0.1328]
[1753037807589,4.138,3752.4,3752.2,0.1328]
[1753037808599,0.002,3752.5,3752.2,0.1328]
[1753037808803,4.138,3752.4,3752.2,0.1328]
[1753037809176,0.002,3752.5,3752.2,0.1328]
[1753037809385,4.138,3752.4,3752.2,0.1328]
[1753037809796,4.138,3752.4,3752.2,2.79789953]
[1753037809994,0.002,3752.5,3752.2,2.79789953]
[1753037810197,4.139,3752.5,3752.2,2.79787693]
[1753037810392,0.002,3752.5,3752.3,2.66501283]
[1753037810610,0.002,3752.5,3752.4,0.4524]
[1753037810793,4.139,3752.5,3752.2,0.1328]
[1753037811091,0.002,3752.5,3752.2,3.25027982]
[1753037811297,0.002,3752.5,3752.4,2.66496109]
[1753037811602,0.002,3752.5,3752.4,2.79776109]
[1753037811810,0.002,3752.5,3752.4,3.25016109]
[1753037812291,0.002,3752.5,3752.4,3.7826488]
[1753037812698,0.002,3752.5,3752.4,3.80929841]
[1753037813004,0.002,3752.5,3752.4,7.60619841]
[1753037813182,0.002,3752.5,3752.4,7.5795488]
[1753037816095,0.002,3752.5,3752.4,11.7145488]
[1753037818791,0.002,3752.5,3752.4,3.66528771]
[1753037818988,0.002,3752.5,3752.4,6.24226109]
[1753037819510,0.002,3752.5,3752.4,10.37626109]
[1753037819916,0.002,3752.5,3752.4,6.24226109]
[1753037820223,0.002,3752.5,3752.4,3.5773]
[1753037820444,0.002,3752.5,3752.4,10.37626109]
[1753037821095,0.002,3752.5,3752.4,7.7113]
[1753037821296,0.002,3752.5,3752.4,10.37626109]
[1753037822025,0.002,3752.5,3752.4,9.93176109]
[1753037822798,0.002,3752.5,3752.4,10.37626109]
[1753037823027,0.002,3752.5,3752.4,7.2668]
[1753037823332,0.002,3752.5,3752.4,0.1328]
[1753037823534,0.002,3752.5,3752.4,2.79776109]
[1753037823832,0.002,3752.5,3752.4,3.75735376]
[1753037824034,0.002,3752.5,3752.4,4.20185376]
[1753037824536,0.002,3752.5,3752.4,2.79776109]
[1753037824722,0.002,3752.5,3752.4,6.93076109]
[1753037825310,0.002,3752.5,3752.4,4.2658]
[1753037825833,0.002,3752.5,3752.4,6.93076109]
[1753037826437,0.002,3752.5,3752.4,4.2658]
[1753037826641,3.83139007,3752.5,3752.4,0.1328]
[1753037826861,1.1665,3752.5,3752.4,0.1328]
[1753037827007,3.47799007,3752.5,3752.4,0.1328]
[1753037827210,1.1665,3752.5,3752.4,0.1328]
[1753037827702,3.83139007,3752.5,3752.4,0.1328]
[1753037827907,2.66501584,3752.4,3752.1,4.132]
[1753037828110,2.66503971,3752.3,3752.1,4.2648]
[1753037828546,2.66503971,3752.3,3752.1,0.1328]
[1753037829341,2.66510313,3752.2,3752.1,0.1328]
[1753037829554,1.1665,3752.5,3752.1,0.1328]
[1753037829908,2.66508827,3752.3,3752.1,0.1328]
[1753037830548,1.1665,3752.5,3752.1,0.1328]
[1753037830908,2.66497159,3752.4,3752.1,0.1328]
[1753037831420,2.66503745,3752.3,3752.1,0.1328]
[1753037831621,2.66503745,3752.3,3751.7,2.84704007]
[1753037831622,2.66510313,3752.2,3751.7,0.18159779]
[1753037831839,2.66530305,3752.0,3751.8,0.1328]
[1753037832252,3.47641623,3751.9,3751.8,0.1328]
[1753037832752,0.8111,3751.9,3751.8,0.1328]
[1753037832954,0.55,3751.8,3751.7,0.18159779]
[1753037833257,4.32829238,3751.8,3751.7,0.18159779]
[1753037833638,8.45929238,3751.8,3751.7,0.18159779]
[1753037833814,8.10589238,3751.8,3751.7,0.18159779]
[1753037834022,9.27039238,3751.8,3751.7,0.18159779]
[1753037834550,2.1206051,3751.8,3751.7,0.18159779]
[1753037834860,7.60748728,3751.8,3751.7,0.18159779]
[1753037835052,0.8111,3752.1,3751.7,0.18159779]
[1753037835252,2.66528619,3752.0,3751.7,0.31439779]
[1753037835420,2.66531578,3752.0,3751.7,0.31439779]
[1753037835818,0.8111,3752.2,3751.7,0.31439779]
[1753037836022,0.002,3752.5,3752.0,4.30069681]
[1753037836244,0.002,3752.5,3752.1,4.73395174]
[1753037836459,0.002,3752.5,3752.4,0.1328]
[1753037836617,0.002,3752.5,3752.4,2.79776109]
[1753037836819,0.002,3752.5,3752.4,0.1328]
[1753037837026,0.002,3752.5,3752.4,2.79776109]
[1753037838744,0.002,3752.5,3752.4,0.1328]
[1753037838946,1.7224,3752.5,3751.8,2.6653322]
[1753037839557,2.66497235,3752.4,3751.7,2.84703448]
[1753037839719,1.7224,3752.5,3751.8,2.66537818]
[1753037840325,1.7224,3752.5,3751.9,2.66531417]
[1753037840624,4.38729022,3752.5,3751.9,2.66530405]
[1753037841565,4.38729022,3752.5,3751.8,2.66537208]
[1753037841869,2.66496109,3752.4,3751.7,2.8470353]
[1753037842057,2.66503443,3752.3,3751.7,0.18159779]
[1753037842243,1.7224,3752.5,3751.7,0.18159779]
[1753037842443,1.7224,3752.5,3751.8,2.66532193]
[1753037842642,4.38730136,3752.5,3751.8,2.66532193]
[1753037843028,1.7224,3752.5,3751.9,2.66530543]
[1753037843967,1.7224,3752.5,3752.0,2.66523928]
[1753037844128,0.002,3752.5,3752.4,2.66496109]
[1753037844473,0.002,3752.5,3752.4,3.10946109]
[1753037846491,0.002,3752.5,3752.4,6.10946109]
[1753037848963,0.002,3752.5,3752.4,6.24226109]
[1753037850893,0.002,3752.5,3752.4,4.2598]
[1753037851781,0.002,3752.5,3752.4,6.92476109]
[1753037852207,0.002,3752.5,3752.4,4.2598]
[1753037852982,0.002,3752.5,3752.4,4.2588]
[1753037854117,0.002,3752.5,3752.4,0.1328]
[1753037854310,0.002,3752.5,3752.2,4.126]
[1753037854910,2.66689551,3752.5,3752.2,4.126]
[1753037855117,0.002,3752.5,3752.2,4.126]
[1753037855282,2.66689338,3752.5,3752.2,4.126]
[1753037855484,0.002,3752.5,3752.2,4.126]
[1753037856830,2.66690283,3752.5,3752.2,4.126]
[1753037858417,0.002,3752.5,3752.2,4.126]
[1753037858581,2.6669103,3752.5,3752.2,4.126]
[1753037858921,0.002,3752.5,3752.2,4.126]
[1753037859291,2.6668959,3752.5,3752.2,4.126]
[1753037859700,0.002,3752.5,3752.2,4.126]
[1753037859907,0.002,3752.5,3752.3,4.125]
[1753037860406,0.7846,3752.5,3752.2,0.1328]
[1753037860805,0.7846,3752.5,3752.2,2.79788375]
[1753037861003,0.7846,3752.5,3752.2,4.2578]
[1753037861422,0.7846,3752.5,3752.2,0.1328]
[1753037861608,0.7846,3752.5,3752.2,4.2578]
[1753037861943,0.7846,3752.5,3752.2,6.92289866]
[1753037862157,0.7846,3752.5,3752.3,2.66502395]
[1753037862337,0.002,3752.5,3752.3,3.12252395]
[1753037862660,0.002,3752.5,3752.3,7.24752395]
[1753037863461,0.002,3752.5,3752.3,4.5825]
[1753037863665,0.002,3752.5,3752.4,2.66496109]
[1753037863959,0.002,3752.5,3752.4,2.79776109]
[1753037865921,0.002,3752.5,3752.4,0.1328]
[1753037867838,0.002,3752.5,3752.4,2.79776109]
[1753037868151,0.002,3752.5,3752.3,4.125]
[1753037868351,0.002,3752.5,3752.3,6.78999954]
[1753037868568,0.002,3752.5,3752.3,4.125]
[1753037868734,0.002,3752.5,3752.3,4.123]
[1753037869332,0.002,3752.5,3752.2,2.6650533]
[1753037869572,0.002,3752.5,3752.3,4.123]
[1753037870336,0.002,3752.5,3752.2,2.66508649]
[1753037870538,0.552,3752.5,3752.3,4.123]
[1753037870838,3.6068657,3752.5,3752.3,4.123]
[1753037871374,2.66496109,3752.4,3752.3,4.123]
[1753037871546,2.66496109,3752.4,3752.1,0.1328]
[1753037871742,2.66496109,3752.4,3752.2,4.123]
[1753037871946,2.66496109,3752.4,3752.1,0.1328]
[1753037872157,2.66496109,3752.4,3752.1,4.2558]
[1753037872684,3.60688149,3752.5,3752.1,4.2558]
[1753037873360,0.94196721,3752.5,3752.1,4.2558]
[1753037873767,3.60688038,3752.5,3752.1,4.2558]
[1753037874155,2.66500877,3752.4,3752.2,4.122]
[1753037874356,2.66503211,3752.3,3752.2,4.122]
[1753037874680,2.66510313,3752.2,3752.1,0.1328]
[1753037874987,2.66510313,3752.2,3752.1,4.2548]
[1753037875146,0.7534,3752.3,3752.1,4.2548]
[1753037875346,3.41844038,3752.3,3752.1,0.1328]
[1753037875551,2.66510313,3752.2,3752.1,0.1328]
[1753037875975,0.7534,3752.3,3752.1,0.1328]
[1753037876385,0.002,3752.5,3752.2,0.7523]
[1753037876685,0.002,3752.5,3752.3,5.08021]
[1753037876882,0.002,3752.5,3752.3,4.5795]
[1753037877085,0.002,3752.5,3752.4,0.4575]
[1753037877385,0.002,3752.5,3752.4,3.12246109]
[1753037877591,0.002,3752.5,3752.4,3.1491107]
[1753037879193,0.002,3752.5,3752.4,3.12246109]
[1753037879388,0.002,3752.5,3752.4,0.4575]
[1753037879686,0.81,3752.5,3751.9,3.4498]
[1753037879886,0.002,3752.5,3752.0,3.11499422]
[1753037880047,0.002,3752.5,3752.1,4.121]
[1753037880248,0.002,3752.5,3752.1,4.5708]
[1753037880451,0.002,3752.5,3752.1,6.78613658]
[1753037880684,0.002,3752.5,3752.2,0.4498]
[1753037880889,0.808,3752.4,3751.0,0.1731027]
[1753037881092,2.66542415,3751.8,3751.1,0.4498]
[1753037881280,2.66550728,3751.7,3751.2,3.14113027]
[1753037881479,2.66549638,3751.7,3751.2,0.14113027]
[1753037881708,2.66553215,3751.6,3751.1,4.5708]
[1753037881988,2.66554694,3751.6,3751.2,3.0]
[1753037882695,2.66555,3751.6,3751.2,3.0]
[1753037883052,2.66560439,3751.5,3751.2,3.0]
[1753037883687,2.66550983,3751.7,3751.2,3.0]
[1753037883891,2.66554144,3751.6,3751.2,3.0]
[1753037884687,2.66561716,3751.5,3751.2,3.0]
[1753037884867,1.65774794,3752.0,3751.2,0.4498]
[1753037885072,2.66536819,3751.9,3751.3,0.4498]
[1753037885272,2.66546279,3751.7,3751.3,0.4498]
[1753037885473,3.47325704,3752.0,3751.4,0.4498]
[1753037885668,2.66545106,3751.8,3751.4,0.4498]
[1753037885890,2.66545106,3751.8,3751.2,7.121]
[1753037885891,0.7868,3751.7,3751.0,0.1731027]
[1753037886195,2.66574254,3751.3,3751.0,0.1731027]
[1753037886380,2.66585697,3751.2,3751.0,0.1731027]
[1753037886699,2.66588467,3751.1,3751.0,0.1731027]
[1753037886863,2.66582904,3751.2,3751.0,0.1731027]
[1753037887058,0.55,3751.4,3751.0,0.1731027]
[1753037887264,2.66586322,3751.2,3751.0,0.1731027]
[1753037887461,4.00268467,3751.1,3751.0,0.1731027]
[1753037887687,2.66609615,3750.9,3750.4,0.001]
[1753037887885,2.66611128,3750.8,3750.4,0.001]
[1753037888197,2.66603448,3750.9,3750.4,0.001]
[1753037888399,2.66617004,3750.7,3750.4,0.001]
[1753037888598,0.7868,3751.1,3750.4,0.001]
[1753037888599,2.66612273,3750.8,3750.4,0.001]
[1753037888802,0.55,3751.0,3750.4,0.001]
[1753037888956,2.66604334,3750.9,3750.4,0.4508]
[1753037889161,2.66604334,3750.9,3750.5,0.4498]
[1753037889556,2.66610008,3750.8,3750.5,0.4498]
[1753037889774,2.66604715,3750.9,3750.5,0.4498]
[1753037890196,0.7868,3751.1,3750.4,0.001]
[1753037890498,0.7868,3751.7,3750.8,2.66607844]
[1753037890661,6.78552084,3751.7,3751.0,2.66590986]
[1753037890861,1.3368,3751.6,3750.8,0.02666097]
[1753037891065,8.65644862,3751.6,3750.4,3.4508]
[1753037891262,2.66602241,3751.0,3750.4,0.4508]
[1753037891458,0.55,3751.1,3750.4,0.4508]
[1753037891664,2.66600482,3751.0,3750.4,0.4508]
[1753037892112,2.66584969,3751.2,3750.4,0.4508]
[1753037892113,3.2158796,3751.2,3750.5,2.66630649]
[1753037892315,3.2158796,3751.2,3750.4,0.4508]
[1753037892316,2.66601933,3751.0,3750.4,0.4508]
[1753037892689,2.66603863,3750.9,3750.4,0.4508]
[1753037893107,3.21582269,3751.2,3750.4,0.4508]
[1753037893108,2.6659708,3751.0,3750.4,0.4508]
[1753037893278,2.6659708,3751.0,3750.5,0.4498]
[1753037893478,2.66590726,3751.1,3750.5,0.4498]
[1753037893894,2.66609789,3750.8,3750.4,0.001]
[1753037894102,2.66628721,3750.6,3750.4,0.001]
[1753037894434,2.66619464,3750.7,3750.4,0.001]
[1753037894796,2.66624121,3750.6,3750.4,0.001]
[1753037894994,2.66612057,3750.8,3750.4,0.001]
[1753037895190,0.3534,3750.9,3750.4,0.001]
[1753037895395,2.66615315,3750.8,3750.4,0.001]
[1753037895620,2.66617146,3750.7,3750.4,0.001]
[1753037895791,0.55,3750.9,3750.4,0.001]
[1753037896119,4.12,3751.3,3750.7,2.66616716]
[1753037896327,4.12,3751.3,3750.8,0.4498]
[1753037896519,0.55,3751.5,3750.9,0.4498]
[1753037896685,4.12,3751.4,3750.9,0.4498]
[1753037896878,2.66532531,3751.9,3751.0,1.2266]
[1753037897095,8.1234,3752.4,3751.0,1.2266]
[1753037897096,4.12,3752.0,3751.1,0.4498]
[1753037897296,2.66545633,3751.8,3751.1,3.11566841]
[1753037897615,2.66545633,3751.8,3751.4,0.1328]
[1753037897926,4.12,3752.0,3751.4,0.1328]
[1753037898133,2.66551391,3751.7,3751.4,0.1328]
[1753037898920,4.6268,3752.0,3751.4,0.1328]
[1753037899248,2.6653935,3751.8,3751.4,0.1328]
[1753037900429,7.29205344,3752.0,3751.4,0.1328]
[1753037900430,2.66533086,3751.9,3751.4,0.1328]
[1753037900728,2.66538908,3751.8,3751.4,0.5826]
[1753037900939,2.66533703,3751.9,3751.4,0.5826]
[1753037901502,4.6268,3752.0,3751.4,0.5826]
[1753037901736,2.66538829,3751.8,3751.4,0.5826]
[1753037901937,2.66538829,3751.8,3751.4,0.1328]
[1753037902933,6.78433401,3751.9,3751.4,0.5826]
[1753037903141,4.119,3751.9,3751.4,0.5826]
[1753037903348,4.119,3751.9,3751.5,0.4498]
[1753037903728,2.66546592,3751.7,3751.4,0.1328]
[1753037904240,2.66538728,3751.8,3751.4,0.1328]
[1753037904647,2.66546311,3751.7,3751.4,0.1328]
[1753037904852,2.66546636,3751.7,3751.4,0.1328]
[1753037905454,2.66540838,3751.8,3751.4,0.1328]
[1753037905811,6.78534737,3751.9,3751.4,0.1328]
[1753037906014,2.66539809,3751.8,3751.4,0.1328]
[1753037906244,6.78534114,3751.9,3751.4,0.5826]
[1753037906427,2.66539591,3751.8,3751.4,0.5826]
[1753037906950,2.6654305,3751.8,3751.4,0.5826]
[1753037907148,4.12,3751.9,3751.4,0.5826]
[1753037907545,2.66540971,3751.8,3751.4,0.5826]
[1753037907853,2.66547128,3751.7,3751.4,0.5826]
[1753037908058,2.66540974,3751.8,3751.5,0.4402]
[1753037908522,2.6654159,3751.8,3751.4,0.1328]
[1753037908723,6.78533506,3751.9,3751.4,0.1328]
[1753037908956,6.78433506,3751.9,3751.4,0.1328]
[1753037909124,2.66539277,3751.8,3751.4,0.573]
[1753037909328,6.78435697,3751.9,3751.5,0.4402]
[1753037910458,0.002,3751.9,3751.5,0.4402]
[1753037910654,4.119,3751.9,3751.5,0.4402]
[1753037910860,6.78436061,3751.9,3751.5,0.4402]
[1753037911058,4.119,3751.9,3751.5,0.4402]
[1753037911226,2.66732265,3751.9,3751.5,0.4402]
[1753037911426,0.002,3751.9,3751.5,0.4402]
[1753037911736,4.119,3751.9,3751.5,0.4402]
[1753037912237,6.78437021,3751.9,3751.5,0.4402]
[1753037912666,6.78437021,3751.9,3751.4,0.1328]
[1753037912667,0.002,3751.9,3751.4,0.1328]
[1753037912963,0.002,3751.9,3751.8,0.1328]
[1753037913262,0.002,3751.9,3751.8,3.61738728]
[1753037913470,0.002,3751.9,3751.8,4.29235841]
[1753037913639,0.002,3751.9,3751.8,4.73255841]
[1753037914468,0.002,3751.9,3751.8,2.06717113]
[1753037914634,0.002,3751.9,3751.8,0.952]
[1753037914826,0.002,3751.9,3751.8,0.1328]
[1753037915327,2.66731623,3751.9,3751.8,0.1328]
[1753037915658,0.002,3751.9,3751.6,0.1328]
[1753037916169,2.66538728,3751.8,3751.2,5.6658103]
[1753037916372,2.66538728,3751.8,3751.4,0.1328]
[1753037916662,2.66540461,3751.8,3751.4,0.1328]
[1753037917634,2.66734071,3751.9,3751.4,0.1328]
[1753037918745,0.002,3751.9,3751.4,3.23862241]
[1753037919084,0.002,3751.9,3751.4,0.573]
[1753037919285,2.66546598,3751.7,3751.4,0.573]
[1753037919483,2.66541776,3751.8,3751.4,0.573]
[1753037919635,2.66546775,3751.7,3751.4,0.573]
[1753037920437,2.66540688,3751.8,3751.4,0.573]
[1753037920651,2.66733799,3751.9,3751.4,0.573]
[1753037921073,2.6654767,3751.7,3751.4,0.573]
[1753037921293,0.002,3751.9,3751.4,0.573]
[1753037921573,2.66541559,3751.8,3751.4,0.573]
[1753037921778,2.66540415,3751.8,3751.4,0.573]
[1753037921953,2.66733778,3751.9,3751.4,0.573]
[1753037922186,2.66539686,3751.8,3751.4,0.573]
[1753037922974,2.66547489,3751.7,3751.4,0.573]
[1753037923366,2.66547489,3751.7,3751.4,0.1328]
[1753037923673,2.66540914,3751.8,3751.4,0.1328]
[1753037924975,2.66548022,3751.7,3751.4,0.1328]
[1753037925278,2.66732,3751.9,3751.4,0.1328]
[1753037925279,0.002,3751.9,3751.4,0.1328]
[1753037925446,2.66551827,3751.7,3751.4,0.1328]
[1753037925776,2.66555104,3751.6,3751.4,0.1328]
[1753037925976,2.66560042,3751.5,3751.4,0.1328]
[1753037927077,2.66586306,3751.2,3751.1,0.1328]
[1753037927247,2.66586306,3751.2,3750.8,0.7537]
[1753037927449,2.66586306,3751.2,3750.9,0.1328]
[1753037927649,4.114,3751.3,3750.9,0.1328]
[1753037927979,2.6658138,3751.2,3750.9,0.1328]
[1753037929361,6.77976461,3751.3,3750.9,0.1328]
[1753037929876,6.77977135,3751.3,3750.9,0.573]
[1753037932193,4.114,3751.3,3750.9,0.573]
[1753037932384,6.77975311,3751.3,3750.9,0.573]
[1753037932699,2.6658229,3751.2,3750.9,0.573]
[1753037933092,4.114,3751.3,3750.9,0.573]
[1753037933288,2.66581537,3751.2,3750.9,0.573]
[1753037933991,6.7797565,3751.3,3750.9,0.573]
[1753037934188,4.114,3751.3,3750.9,0.573]
[1753037934789,4.114,3751.3,3750.9,3.23898045]
[1753037934993,4.114,3751.3,3750.9,0.573]
[1753037935170,6.77974382,3751.3,3750.9,0.573]
[1753037936260,2.66574382,3751.3,3750.9,0.573]
[1753037936462,4.113,3751.2,3750.9,0.573]
[1753037936992,2.66574726,3751.3,3750.9,0.573]
[1753037937159,4.112,3751.2,3750.9,0.573]
[1753037937861,6.77781901,3751.2,3750.9,0.573]
[1753037938276,4.112,3751.2,3750.9,0.573]
[1753037939476,6.77782001,3751.2,3750.9,0.573]
[1753037939796,4.112,3751.2,3750.9,0.573]
[1753037940174,4.112,3751.2,3750.9,3.23900658]
[1753037940485,4.112,3751.2,3750.9,0.573]
[1753037941396,4.112,3751.2,3751.0,2.66595096]
[1753037941696,4.112,3751.1,3750.9,0.1328]
[1753037941908,4.112,3751.1,3750.9,4.0474091]
[1753037942225,4.112,3751.1,3751.0,0.4598]
[1753037942710,4.112,3751.1,3750.9,0.1328]
[1753037942876,0.7938,3751.0,3750.9,0.1328]
[1753037943198,2.66609789,3750.8,3750.1,0.02]
[1753037943381,0.7938,3750.7,3750.3,0.1328]
[1753037943565,1.1472,3750.7,3750.3,0.1328]
[1753037944274,3.45997868,3750.7,3750.3,0.1328]
[1753037944475,4.90536597,3750.7,3750.3,0.1328]
[1753037944780,2.66624129,3750.6,3750.3,0.1328]
[1753037945098,4.90536791,3750.7,3750.3,0.1328]
[1753037945595,2.23918171,3750.7,3750.3,0.1328]
[1753037945904,3.45997078,3750.7,3750.3,0.1328]
[1753037946475,2.66629422,3750.6,3750.3,0.1328]
[1753037946972,3.45997485,3750.7,3750.3,0.1328]
[1753037947177,4.111,3750.6,3750.3,0.1328]
[1753037947398,6.77726496,3750.6,3750.3,0.1328]
[1753037947594,6.77728533,3750.6,3750.3,0.1328]
[1753037947812,4.111,3750.6,3750.3,0.1328]
[1753037947979,6.77725156,3750.6,3750.3,0.1328]
[1753037948180,4.111,3750.6,3750.3,0.1328]
[1753037948779,6.77725446,3750.6,3750.3,0.1328]
[1753037949019,4.111,3750.6,3750.3,0.1328]
[1753037949331,3.776814,3750.5,3750.1,0.02]
[1753037950712,3.423414,3750.5,3750.1,0.02]
[1753037950881,2.66631115,3750.5,3750.1,0.02]
[1753037955632,3.56971115,3750.5,3750.1,0.02]
[1753037959297,3.21631115,3750.5,3750.1,0.02]
[1753037959522,3.56971115,3750.5,3750.1,0.02]
[1753037959764,4.33921115,3750.5,3750.1,0.02]
[1753037959895,5.88100434,3750.5,3750.1,0.02]
[1753037960298,13.65100434,3750.5,3750.1,0.02]
[1753037960596,0.6828,3750.4,3749.6,0.00970054]
[1753037960803,2.66688001,3749.7,3749.6,0.00970054]
[1753037961021,6.77582887,3749.8,3749.6,0.00970054]
[1753037961313,6.77582462,3749.8,3749.6,0.00970054]
[1753037961692,4.109,3749.8,3749.6,0.00970054]
[1753037961898,6.77583712,3749.8,3749.6,0.46950054]
[1753037962121,4.109,3749.8,3749.6,0.00970054]
[1753037962326,6.77582228,3749.8,3749.6,0.00970054]
[1753037962834,2.66688001,3749.7,3749.6,0.00970054]
[1753037963334,4.87343978,3749.8,3749.6,0.00970054]
[1753037963533,2.66688001,3749.7,3749.6,0.00970054]
[1753037965012,0.1328,3749.9,3749.6,0.00970054]
[1753037965238,0.55,3750.3,3749.7,0.7683]
[1753037965410,2.66674624,3749.9,3749.7,0.7683]
[1753037965612,2.66674624,3749.9,3749.8,0.4598]
[1753037966143,6.77468091,3750.0,3749.8,0.4598]
[1753037966547,6.77468091,3750.0,3749.7,0.7683]
[1753037966749,4.108,3750.0,3749.8,0.4598]
[1753037966969,6.77468529,3750.0,3749.8,0.4598]
[1753037967125,2.66668529,3750.0,3749.8,0.4598]
[1753037967336,6.77468529,3750.0,3749.9,0.4598]
[1753037968068,4.108,3750.0,3749.9,0.4598]
[1753037969076,2.79940078,3750.1,3749.9,0.4598]
[1753037969272,4.108,3750.0,3749.7,0.7683]
[1753037969832,4.108,3750.0,3749.8,0.4443]
[1753037970171,4.108,3750.0,3749.7,0.7683]
[1753037970377,4.108,3750.0,3749.9,0.4443]
[1753037971430,0.1328,3750.1,3749.9,0.4443]
[1753037971431,0.7648,3751.0,3749.9,0.4443]
[1753037971646,4.107,3750.4,3749.9,3.24380662]
[1753037971960,0.1328,3750.6,3750.0,1.2491]
[1753037972142,4.107,3750.5,3750.3,0.1328]
[1753037972365,4.107,3750.5,3750.4,0.4443]
[1753037972995,4.107,3750.5,3750.3,0.1328]
[1753037974471,4.107,3750.4,3750.3,0.1328]
[1753037977215,6.77338225,3750.4,3750.3,0.1328]
[1753037977405,4.106,3750.4,3750.3,0.1328]
[1753037977797,6.77238225,3750.4,3750.3,0.1328]
[1753037977968,4.106,3750.4,3749.8,1.2111]
[1753037978307,2.66679444,3749.9,3749.6,0.00970054]
[1753037978518,2.66679444,3749.9,3749.6,0.14250054]
[1753037978683,2.66679444,3749.9,3749.6,0.58680054]
[1753037978860,4.105,3750.0,3749.6,0.58680054]
[1753037979064,2.66680816,3749.9,3749.6,0.58680054]
[1753037979807,2.66673777,3749.9,3749.6,0.58680054]
[1753037980200,2.66681319,3749.8,3749.6,0.58680054]
[1753037980407,2.66676106,3749.9,3749.6,0.58680054]
[1753037980898,6.77168553,3750.0,3749.6,0.58680054]
[1753037981063,6.77168553,3750.0,3749.7,0.4443]
[1753037981700,2.66675399,3749.9,3749.6,0.14250054]
[1753037981903,2.66675399,3749.9,3749.6,0.58680054]
[1753037982704,6.7716923,3750.0,3749.6,0.58680054]
[1753037983914,6.7716923,3750.0,3749.7,0.4443]
[1753037984475,2.66674564,3749.9,3749.7,0.4443]
[1753037985016,6.77168471,3750.0,3749.7,0.4443]
[1753037985806,2.66674088,3749.9,3749.7,0.4443]
[1753037986908,2.66680889,3749.8,3749.7,0.4443]
[1753037987124,2.66688001,3749.7,3749.6,0.14250054]
[1753037987279,6.77083043,3749.8,3749.6,0.14250054]
[1753037987493,2.66688001,3749.7,3749.6,0.14250054]
[1753037990347,2.66688001,3749.7,3749.6,0.00970054]
[1753037990551,3.02028001,3749.7,3749.6,0.00970054]
[1753037990753,2.66688001,3749.7,3749.6,0.00970054]
[1753037993855,2.66688001,3749.7,3749.6,0.01070054]
[1753037996509,6.76988001,3749.7,3749.6,0.01070054]
[1753038000372,7.83981334,3749.7,3749.6,0.01070054]
[1753038001458,6.76988001,3749.7,3749.6,0.01070054]
[1753038001968,6.76788001,3749.7,3749.6,0.01070054]
[1753038002173,6.76788001,3749.7,3749.6,0.44490054]
[1753038002900,6.76788001,3749.7,3749.6,0.01070054]
[1753038004051,6.76788001,3749.7,3749.6,0.44490054]
[1753038004687,6.76788001,3749.7,3749.6,0.01070054]
[1753038008484,9.06926334,3749.7,3749.6,0.01070054]
[1753038008797,9.55546334,3749.7,3749.6,0.01070054]
[1753038010285,9.20206334,3749.7,3749.6,0.01070054]
[1753038012829,3.9763934,3749.4,3749.3,0.001]
[1753038013127,9.63206487,3749.4,3749.3,0.001]